Cogmind - Beta 15 @@@ ROGUE MODE // 2025.08.17 @ 16:18:01 Player: Naughtyusername Result: Destroyed by as-85653 with Assembled Blade Performance ------------- Evolutions (1) 500 Regions Visited (3) 600 Robots Destroyed (70) 350 Value Destroyed (1498) 1498 Prototype IDs (2) 40 Alien Tech Used (0) 0 Bonus (0) 0 TOTAL SCORE: 2988 Bonus ------- None Cogmind --------- Core Integrity 0/400 Matter 289/300 Energy 228/265 System Corruption 0% Temperature Cool (2) Movement Walking (260) Ox2 Location -9/Mines Parts ------- > --- POWER (1) -------- Improved Ion Engine > --- PROPULSION (3) --- Aluminum Leg Aluminum Leg > --- UTILITY (3) ------ High-capacity Storage Unit Improved Targeting Computer Hardlight Generator > --- WEAPON (2) ------- Autogun Autogun > --- INVENTORY (20) --- Light Ion Engine Aluminum Leg Aluminum Leg Compact Wheel High-capacity Matter Pod (200) High-capacity Matter Pod (200) Authchip [R/Combat] Authchip [R/Combat] High-powered Tractor Beam High-powered Tractor Beam EMP Blaster Grenade Launcher Rocket Launcher Peak State ------------ > --- POWER ------------ Improved Ion Engine > --- PROPULSION ------- Aluminum Leg Aluminum Leg Makeshift Leg > --- UTILITY ---------- High-capacity Storage Unit Improved Targeting Computer Hardlight Generator > --- WEAPON ----------- Autogun Autogun > --- INVENTORY -------- Light Ion Engine Aluminum Leg Aluminum Leg Compact Wheel High-capacity Matter Pod High-capacity Matter Pod Hardlight Generator Authchip [R/Combat] Authchip [R/Combat] High-powered Tractor Beam High-powered Tractor Beam Autogun EMP Blaster Grenade Launcher Rocket Launcher [Rating: 21] Favorites ----------- Power Improved Ion Engine Engine Improved Ion Engine Propulsion Aluminum Leg Treads Light Treads Leg Aluminum Leg Utility High-capacity Storage Unit Device Seismic Detector Storage High-capacity Storage Unit Processor Improved Targeting Computer Protection Light Armor Plating Weapon Autogun Ballistic Gun Autogun Launcher Grenade Launcher Build | -11 -10 -9 -9 ------- Run | Yrd Mat Mat Min Slots Evolved 2 | . . 2 . Power . | . . . . Propulsion 1 | . . 1 . Utility 1 | . . 1 . Weapon . | . . . . Parts Attached 38 | 2 10 15 11 Power 4 | . 1 2 1 Engine 4 | . 1 2 1 Core . | . . . . Reactor . | . . . . Propulsion 12 | . 1 8 3 Treads 4 | . . 4 . Leg 8 | . 1 4 3 Wheel . | . . . . Hover . | . . . . Flight . | . . . . Utility 11 | 1 3 4 3 Device 4 | 1 . 1 2 Storage 2 | . 2 . . Processor 1 | . . 1 . Hackware . | . . . . Protection 4 | . 1 2 1 Artifact . | . . . . Weapon 11 | 1 5 1 4 Energy Gun . | . . . . Energy Cannon . | . . . . Ballistic Gun 9 | 1 4 . 4 Ballistic Cannon . | . . . . Launcher 2 | . 1 1 . Special Weapon . | . . . . Impact Weapon . | . . . . Slashing Weapon . | . . . . Piercing Weapon . | . . . . Special Melee Weapon . | . . . . Unidentified Prototypes . | . . . . Parts Lost 20 | . 2 6 12 Power 3 | . 1 1 1 Propulsion 6 | . 1 1 4 Utility 6 | . . 3 3 Weapon 5 | . . 1 4 Highest Loss Streak 7 | . 2 3 7 To Critical Strikes . | . . . . Average Backups 12 | 1 7 15 14 Power 1 | 1 1 2 . Propulsion 1 | . . 2 2 Utility 5 | . 2 5 7 Weapon 4 | . 2 5 3 Tool/Special . | . . . . Unused Backups 29 | 11 4 3 11 Power 4 | 1 1 1 1 Propulsion 11 | 6 1 2 2 Utility 8 | 1 1 . 6 Weapon 6 | 3 1 . 2 Tool/Special . | . . . . Average Slot Usage (%) 98 | . 99 97 98 Engine 11 | . 13 11 10 Treads 3 | . . 7 . Leg 27 | . 28 22 31 Device 5 | . 7 3 6 Storage 11 | . 14 11 11 Processor 7 | . . 9 11 Protection 6 | . 6 9 4 Ballistic Gun 23 | . 27 21 21 Peak Build Rating 21 | 7 11 16 21 Average Rating 13 | 6 8 14 17 On Entrance 10 | 6 7 11 16 Naked Turns . | . . . . Heaviest Build 58 | 14 52 56 58 Greatest Support 60 | 20 20 60 40 Greatest Overweight (x) 17 | . 2 17 2 Average Overweight (x) . | . . 1 1 Largest Inventory Capacity 20 | 8 20 20 20 Average Capacity 17 | 8 10 20 20 Most Carried 20 | 7 10 20 18 Average Carried 12 | 1 7 15 14 Final Capacity 20 | 8 20 20 20 Final Carried 18 | 1 10 18 13 Class Distribution -------------------- 58% | Scavenger-Mutant 41% | Mutant Dominant Class ---------------- Mutant | -10/Materials Scavenger-Mutant | -9/Materials Scavenger-Mutant | -9/Mines Resources | -11 -10 -9 -9 ----------- Run | Yrd Mat Mat Min Matter Collected 2268 | 260 319 1129 560 Remotely . | . . . . Salvage Created 2021 | 85 526 1134 276 Parts 148 | 3 39 88 18 Haulers Intercepted 4 | . 1 3 . Recyclers Shooed 4 | 1 1 2 . Parts Field Recycled . | . . . . Retrieved Matter . | . . . . Parts Self-Destructed . | . . . . Prevented . | . . . . Kills | -11 -10 -9 -9 ------- Run | Yrd Mat Mat Min Combat Hostiles Destroyed 53 | . 12 26 15 Guns 37 | . 6 20 11 AOE 16 | . 6 6 4 Classes Destroyed 12 | 2 6 2 2 Worker 6 | . 2 3 1 Builder 3 | . 2 . 1 Tunneler 2 | 1 . 1 . Hauler 4 | . 1 3 . Recycler 4 | 1 2 1 . Operator 1 | . . 1 . Watcher 3 | . 1 2 . Swarmer 18 | . 6 8 4 Grunt 20 | . 6 11 3 Sentry 7 | . . 7 . Demolisher 2 | . . . 2 Assembled 6 | . . . 6 Best Kill Streak 12 | 2 12 9 5 Combat Bots Only 7 | . 6 7 4 Max Kills in Single Turn 3 | 1 3 3 3 Gunslinging 1 | . . 1 . Exploded 3 | . 2 2 3 Melee . | . . . . Uniques/NPCs Destroyed . | . . . . Combat | -11 -10 -9 -9 -------- Run | Yrd Mat Mat Min Hostile Shots Fired 227 | . 61 107 59 Missed 61 | . 19 32 10 Hits 166 | . 42 75 49 Melee 6 | . . . 6 Projectile 160 | . 42 75 43 AOE 18 | . . . 18 Critical Strikes 1 | . . 1 . Damage Taken 2702 | . 532 949 1221 Core 494 | . 90 142 262 Absorbed by Shields 44 | . . . 44 Core Remaining (%) 82 | 100 64 . . Volleys Fired 170 | 10 37 77 46 Largest 2 | 2 2 2 2 Hottest 46 | 40 46 46 46 Shots Fired 317 | 20 64 144 89 Gun 296 | 20 55 135 86 Cannon . | . . . . Launcher 21 | . 9 9 3 Special . | . . . . Kinetic 296 | 20 55 135 86 Thermal . | . . . . Explosive 21 | . 9 9 3 Electromagnetic . | . . . . Robot Hit Streak 20 | 5 11 20 8 Robot Miss Streak 4 | 3 4 3 3 Penetration Max . | . . . . Secondary Targets 5 | . 1 2 2 Max Gunslinging Chain 1 | . 1 1 1 Shots Hit Robots 209 | 10 41 102 56 Core Hits 112 | 4 31 49 28 Critical Kills . | . . . . Critical Parts Destroyed 2 | 1 . 1 . Critical Strikes 2 | 1 . 1 . Destroy 2 | 1 . 1 . Melee Attacks . | . . . . Impact . | . . . . Slashing . | . . . . Piercing . | . . . . Sneak Attacks . | . . . . Combat Hostiles . | . . . . Follow-up Attacks . | . . . . Damage Inflicted 4191 | 91 1089 1966 1045 Guns 2759 | 91 430 1416 822 Cannons . | . . . . Explosions 1373 | . 659 502 212 Melee . | . . . . Ramming 59 | . . 48 11 Kinetic 2759 | 91 430 1416 822 Thermal . | . . . . Explosive 1373 | . 659 502 212 Electromagnetic . | . . . . Impact . | . . . . Slashing . | . . . . Piercing . | . . . . Highest Corruption 4 | . 4 . . Average Corruption 2 | . 2 . . Corruption Purged . | . . . . Corruption Blocked . | . . . . Effects 12 | . 12 . . Message Errors 4 | . 4 . . Matter Fused 4 | . 4 . . Energy Discharges 1 | . 1 . . Data Loss (minor) 1 | . 1 . . Data Loss (major) 1 | . 1 . . Weapon Failures 1 | . 1 . . Overload Shots . | . . . . Overflow Damage 63 | . 30 30 3 Projectiles . | . . . . Explosions 63 | . 30 30 3 Melee . | . . . . Knockbacks 1 | . . . 1 Impact 1 | . . . 1 Kinetic . | . . . . Secondary . | . . . . Self-Inflicted Damage 169 | . 121 8 40 Shots 6 | . 3 1 2 Rammed 4 | . . 4 . Targets Rammed 6 | . . 5 1 Kicked 2 | . . 1 1 Crushed . | . . . . Highest Temperature 41 | . 12 31 41 Average Temperature 8 | . 5 10 6 Received Heat Transfer 595 | . 138 369 88 Siege Activations . | . . . . Martial Activations . | . . . . Shielding Activations . | . . . . Robots Disrupted . | . . . . Combat Hostiles . | . . . . Robots Corrupted 1 | . . 1 . Combat Hostiles . | . . . . Parts Fried 2 | . . 2 . Impact Corruptions 1 | . . 1 . Robots Melted . | . . . . Combat Hostiles . | . . . . Parts Melted . | . . . . Heat Transferred . | . . . . Parts Sabotaged . | . . . . Parts Stolen . | . . . . Parts Stripped . | . . . . Power Chain Reactions . | . . . . Alert | -11 -10 -9 -9 ------- Run | Yrd Mat Mat Min Maximum Alert Level 2 | . 1 2 1 Low Security (%) 50 | 100 54 22 79 Level 1 49 | . 45 76 20 Level 2 . | . . . . Level 3 . | . . . . Level 4 . | . . . . Level 5 . | . . . . High Security . | . . . . Max Security . | . . . . Peak Influence 403 | 10 250 403 271 Initial 156 | . . 57 156 Average 167 | 2 144 255 83 Influence Increases 1590 | 10 449 861 270 Destroy 0b10 Robot/C 940 | . 240 520 180 Destroy 0b10 Robot/NC 115 | 10 40 55 10 Destroy Leader 214 | . 54 130 30 Successful Hack 22 | . 5 17 . Disable Machine 90 | . 30 30 30 Destroy Structure 119 | . 50 49 20 Lose Combat Pursuer 90 | . 30 60 . Influence Decreases 1590 | 10 311 596 673 Entered New Map 328 | . . 81 247 Time Decay 1052 | 10 291 465 286 Lost Part 170 | . 20 50 100 Lost Ally 40 | . . . 40 Squads Dispatched 6 | . 3 3 . Investigation 4 | . 2 2 . Extermination . | . . . . Reinforcement 2 | . 1 1 . Assault . | . . . . Garrison . | . . . . Intercept . | . . . . Searches Triggered . | . . . . Construction Impeded . | . . . . Haulers Reinforced . | . . . . Active Scanning Responses . | . . . . Cargo Convoy Interrupts . | . . . . Stealth | -11 -10 -9 -9 --------- Run | Yrd Mat Mat Min Distress Signals 5 | . . 5 . Communications Jammed . | . . . . Distress Signals . | . . . . Times Spotted 75 | . 17 40 18 Peak Tracking Total 6 | . 6 6 4 Tactical Retreats 3 | . 1 2 . Traps | -11 -10 -9 -9 ------- Run | Yrd Mat Mat Min Traps Triggered 3 | . 3 . . Indirectly . | . . . . Trap Hack Attempts . | . . . . Triggered . | . . . . Disarmed . | . . . . Reprogrammed . | . . . . Reused . | . . . . Traps Extracted . | . . . . Installed . | . . . . Triggered . | . . . . Machines | -11 -10 -9 -9 ---------- Run | Yrd Mat Mat Min Machines Disabled 7 | . 2 3 2 Max in Single Turn 1 | . 1 1 1 Machines Repaired . | . . . . Machines Dismantled . | . . . . Machines Sabotaged . | . . . . Overloaded Fab Kills . | . . . . Hacking | -11 -10 -9 -9 --------- Run | Yrd Mat Mat Min Machines Accessed 9 | . 3 5 1 Terminals 8 | . 3 4 1 Fabricators . | . . . . Repair Stations . | . . . . Recycling Units 1 | . . 1 . Scanalyzers . | . . . . Garrison Access . | . . . . Total Hacks 29 | . 10 17 2 Successful 14 | . 4 10 . Failed 15 | . 6 7 2 Catastrophic 2 | . . 1 1 Database Lockouts . | . . . . Manual 18 | . 7 11 . Terminals 27 | . 10 15 2 Fabricators . | . . . . Repair Stations . | . . . . Recycling Units 2 | . . 2 . Scanalyzers . | . . . . Garrison Access . | . . . . Terminal Hacks 3 | . . 3 . Prototype ID Bank 1 | . . 1 . Terminal Index 1 | . . 1 . Alert Level 1 | . . 1 . Fabricator Hacks . | . . . . Repair Station Hacks . | . . . . Recycling Unit Hacks . | . . . . Scanalyzer . | . . . . Garrison Access Hacks . | . . . . Unauthorized Hacks 11 | . 4 7 . Terminals 11 | . 4 7 . Botnet 4 | . 1 3 . Skim 7 | . 3 4 . Fabricators . | . . . . Repair Stations . | . . . . Recycling Units . | . . . . Scanalyzers . | . . . . Garrison Access . | . . . . Data Cores Recovered 1 | . . 1 . Used . | . . . . Hacking Detections 8 | . 2 5 1 Full Trace Events 4 | . 1 2 1 Feedback Events . | . . . . Feedback Blocked . | . . . . Robot Schematics Acquired . | . . . . Robots Built . | . . . . Authchips . | . . . . Time . | . . . . Total Robot Build Rating . | . . . . Part Schematics Acquired . | . . . . Parts Built . | . . . . Authchips . | . . . . Time . | . . . . Total Part Build Rating . | . . . . Parts Repaired . | . . . . Time . | . . . . Parts Recycled . | . . . . Recycled Matter . | . . . . Retrieved Matter . | . . . . Retrieved Components . | . . . . Parts Scanalyzed . | . . . . Part Schematics Acquired . | . . . . Parts Damaged . | . . . . Bothacking | -11 -10 -9 -9 ------------ Run | Yrd Mat Mat Min Used RIF Installer . | . . . . Robots Hacked . | . . . . Non-combat . | . . . . Combat . | . . . . Robot Hacks Applied . | . . . . Relay Couplers Released . | . . . . Fabnet Peak Effective % . | . . . . Robots Rewired . | . . . . Allies Hacked . | . . . . Hacks Repelled . | . . . . Allies | -11 -10 -9 -9 -------- Run | Yrd Mat Mat Min Total Allies 2 | . . . 2 Largest Group 2 | . . . 2 Highest-Rated Group 43 | . . . 43 Highest-Rated Ally 31 | . . . 31 Total Orders . | . . . . Ally Attacks . | . . . . Total Damage . | . . . . Kills . | . . . . Allies Corrupted . | . . . . Allies Melted . | . . . . Intel | -11 -10 -9 -9 ------- Run | Yrd Mat Mat Min Active Infowar (turns) 776 | 22 399 355 . Seismic 776 | 22 399 355 . Robot Analysis Total . | . . . . Derelict Logs Recovered . | . . . . Drone Launches . | . . . . Drone Recoveries . | . . . . Exploration | -11 -10 -9 -9 ------------- Run | Yrd Mat Mat Min Turns Passed 3181 | 72 757 1316 1036 Spaces Moved 1359 | 33 421 467 438 Core 1 | . . 1 . Treads 123 | . . 123 . Legs 1235 | 33 421 343 438 Wheels . | . . . . Hover . | . . . . Flight . | . . . . Fastest Speed 120 | 120 120 160 190 Average Speed 185 | 120 147 215 194 Slowest Speed 900 | 120 260 900 260 Overloaded Moves . | . . . . Propulsion Burnouts . | . . . . Robots Hopped . | . . . . Potential Cave-ins . | . . . . Cave-ins Triggered . | . . . . Exploration Rate (%) 43 | 4 68 54 47 Regions Visited 3 Branch Regions 1 Pre-discovered Areas . | . . . . Known Exits Taken . | . . . . Unknown Exits Taken 3 | 1 1 1 . Scrap Searched 1 | . . . 1 Spaces Dug . | . . . . Terrain Destroyed 128 | . 59 44 25 Melee . | . . . . Projectile . | . . . . AOE 128 | . 59 44 25 Terrain Rammed . | . . . . Walls Destroyed . | . . . . Machines Disabled . | . . . . Actions | -11 -10 -9 -9 --------- Run | Yrd Mat Mat Min Total 1752 | 50 501 653 548 Wait 111 | . 9 57 45 Move 1356 | 32 420 466 438 Hop . | . . . . Pick Up 30 | . 13 13 4 Fast Attach 13 | 1 2 9 1 Attach 17 | 1 1 5 10 Detach 8 | 1 1 6 . Swap 19 | . 9 7 3 Drop 22 | 5 9 8 . Fire 170 | 10 37 77 46 Melee . | . . . . Ram . | . . . . Kick 2 | . . 1 1 Crush 4 | . . 4 . Escape Stasis . | . . . . Rewire . | . . . . Trap . | . . . . Miscellaneous . | . . . . Route ------- -11/Scrapyard -10/Materials (discovered 4 exits: *Mat x3 / [*Min]) -9/Materials -9/Mines History --------- Turn | Location | Event 17 | -11/Scrapyard | Discovered new exit (range 3) 73 | -11/Scrapyard | Entered Materials 125 | -10/Materials | Discovered new exit (range 13) 297 | -10/Materials | Discovered new exit (range 12) 328 | -10/Materials | Build established: Mutant 550 | -10/Materials | Discovered new exit (range 8) 822 | -10/Materials | Discovered new exit (range 4) 830 | -10/Materials | Entered another Materials area 830 | -9/Materials | Evolved 2 slots: Propulsion x1, Utility x1 1128 | -9/Materials | Destroyed 7 combat bots 1137 | -9/Materials | Lost 3 parts (1n1u1w) 1645 | -9/Materials | Build established: Scavenger-Mutant 1967 | -9/Materials | Discovered new exit (range 8) 2146 | -9/Materials | Entered Mines 2502 | -9/Mines | Assembled infested the area 2507 | -9/Mines | Assisted by a Guerilla fighting off Assembled 2574 | -9/Mines | Core integrity fell below 50% 2577 | -9/Mines | Lost 3 allies 2589 | -9/Mines | Core integrity fell below 20% 2610 | -9/Mines | Lost 7 parts (1p3n2u1w) 2685 | -9/Mines | Received a Rocket Launcher from a helpful Derelict 3182 | -9/Mines | Destroyed by as-85653 with Assembled Blade Last Messages --------------- 02877_ U-05 Engineer destroyed. 02879_ Acquired 8 matter. 03086_ as-64260 sneak attacks. 03086_ U-05 Engineer system corrupted by crushing effect. 03086_ U-05 Engineer knocked back. 03087_ U-05 Engineer system terminally corrupted. 03087_ K-01 Serf collects debris. 03091_ as-64260 destroyed. 03101_ Core Extractor disabled. 03102_ Hardlight Generator destroyed. 03107_ K-01 Serf collects debris. 03109_ as-39412 destroyed. 03111_ K-01 Serf collects debris. 03116_ Acquired 27 matter. 03120_ K-01 Serf collects debris. 03124_ Acquired 18 matter. 03126_ K-01 Serf collects debris. 03180_ Mak. Leg destroyed. Map ----- +----------------------------------------------------+ | ????????????????????????????????????####??? | | ???????????????????????????????????## ##?? | | ???????????????????????????????????# #?? | | ???????????????????????????????????# #?? | | ???????????????????????????????????# #?? | | ???????????????????????????????????# ##? | | ???????????????????????????????????# ## | | ???????????????????????????????????## | | ????????????????????????????????????# | | ??????????????????????????????????### | | ?????????????????????????????????## | | ?????????????????????????????????# # | | ?????????????????????????????????# # | | ?????????????????????????????????## ## | | ?????????????????????#?#####??????# #? | | ?????????????????????# #########??# #? | | ?????????????????????#### ######?# ##? | | ?????????????????????# # ###### ##?? | | ?????????????????????# # ###?# ##??? | | ?????????????????????# ## ### #???? | | ??????????????????????# #### #???? | | ??????????????????????# #### #???? | | ??????????????????????# # ### ##???? | | ????????# ??????????# # ## # ##???? | | ?????????# a######### # ##??## | | ???????????# a!@ #?#########!| ##??# | | ???????????## ##a### #???????# #=## ##??# | | ????????#???????#%??# #???????# #%## ##??# | | ???????## #####!#?# #???????# #!## #???# | | ???????# =%## ###########=## #???# | | ??????# *=* % |# # ## ###?# | | ?????# !%= % [!=# # #?# | | ?????? ## ##### ####%#?# ##### #?# | | ???????????## ????# #?##!# # ###?# #?# | | ????????????## #????# #?##%# # ##??# #?# | | ??????????????# #????# #??# # # #??# #?# | | ??????????????# #????# #??#%###% ##?# #### | | ??????????##### #???## #?##%## ### | | ?????????## ## ##### ### =%= | | ????????## %=%= =% ## ## | | ????????# ["" %= #####? | | ???????# ### ### "" ####????? | | ??????# ##?# #?## """ ## ####T##### | | ?????# #??# #??## ######?# # | | ????# #??# #???########??????# """ # | | ????# #### #?????????????????# """*= | | ????## #?????????????????# """ # | | ?????#### #######?????????????????# # | | ????????###????????????????????????######## | | ??????????????????????????????????????????? | +----------------------------------------------------+ Best States ------------- Heat Dissipation 28 Energy Generation 12 Energy Capacity 265 Matter Stores 300 Matter Capacity 300 Sight Range 16 Terrain Scan Density 10 Armor Coverage 150 Evasion (%) 55 Targeting Accuracy 6 Recoil Reduction 3 Authchip Count 2 Item Schematics ----------------- None Robot Schematics ------------------ None Fabricated ------------ Nothing Repaired ---------- Nothing Alien Tech Used ----------------- None Achievements -------------- None Challenges ------------ None Game ------ Seed DerelictQuantumMesh Manual? 0 Play Time 00:18:51 Cumulative 97.9 hours Start 2025.08.17 @ 16:01:31 End 2025.08.17 @ 16:18:01 Sessions 1 Manual Loads 0 Difficulty Rogue Special Mode None Game No. 41 Rogue 41 Adventurer 0 Explorer 0 Win Type - Total 1 Types 0/0/1/0/0/0/0/0/0/0 Lore% 69 Gallery% 55 Achievement% 76 Wizard Run 0 Options --------- Layout 2 ASCII 0 Keyboard 1 Movement Vi Keybinds 0 Fullscreen 1 Font 28/SwanstonBold Map View 50x52 Zoom Use 0% Tactical HUD 1 Map Filters NONE Filters NONE Steam 1 RUN: c0e67129-d8e6-419a-a500-be04a8ff8341